[Event "EIRCC 2019"]
[Site "Tallinn"]
[Date "2019.12.05"]
[Round "1.34"]
[White "Kanep, Meelis"]
[Black "Fabregas, Oliver"]
[Result "1-0"]
[ECO "A45"]
[WhiteElo "2466"]
[BlackElo "1934"]
[Annotator "ChessBase"]
[PlyCount "75"]
[EventDate "2019.12.05"]
[EventType "swiss"]
[EventCountry "EST"]
[SourceTitle "playchess.com"]
[Source "ChessBase"]
[SourceQuality "1"]
[TimeControl "900+10"]

1. d4 {[%emt 0:02:24]} Nf6 {[%emt 0:00:00]} 2. Bg5 {[%emt 0:00:04]} c5 {[%emt 0:00:00]} 3. d5 {[%emt 0:00:04]} d6 {[%emt 0:00:20]} 4. Nc3 {[%emt 0:00:03]} h6 {[%emt 0:00:39]} 5. Bxf6 {[%emt 0:00:07]} exf6 {[%emt 0:00:12]} 6. e4 {[%emt 0:00:03]} Be7 {[%emt 0:00:14]} 7. f4 {[%emt 0:00:53]} O-O {[%emt 0:00:31]} 8. Nf3 {[%emt 0:00:10]} Bg4 {[%emt 0:00:34]} 9. h3 {[%emt 0:00:15]} Bxf3 {[%emt 0:00:35]} 10. Qxf3 {[%emt 0:00:02]} Nd7 {[%emt 0:00:16]} 11. Be2 {[%emt 0:00:43]} a6 {[%emt 0:00:20]} 12. a4 {[%emt 0:00:03]} b5 {[%emt 0:01:50]} 13. O-O {[%emt 0:00:48]} b4 {[%emt 0:00:36]} 14. Nd1 {[%emt 0:00:03]} a5 {[%emt 0:00:12]} 15. Ne3 {[%emt 0:00:03]} Nb6 {[%emt 0:00:04]} 16. Kh1 {[%emt 0:00:14]} Qc7 {[%emt 0:00:25]} 17. b3 {[%emt 0:00:05]} Kh8 {[%emt 0:01:05]} 18. Bb5 {[%emt 0:00:12]} Nd7 {[%emt 0:01:06]} 19. Qh5 {[%emt 0:00:17]} Kg8 {[%emt 0:01:10]} 20. Nf5 {[%emt 0:00:13]} Rfe8 {[%emt 0:00:29]} 21. Nxh6+ {[%emt 0:01:02]} gxh6 {[%emt 0:00:19]} 22. Rf3 {[%emt 0:00:10]} Bf8 {[%emt 0:02:26]} 23. Rg3+ {[%emt 0:00:04]} Bg7 {[%emt 0:00:50]} 24. Qg4 {[%emt 0:00:03]} Kf8 {[%emt 0:00:08]} 25. Bxd7 {[%emt 0:00:04]} Bh8 {[%emt 0:00:38]} 26. Bxe8 {[%emt 0:00:26]} Rxe8 {[%emt 0:00:10]} 27. Qf5 {[%emt 0:00:12]} c4 {[%emt 0:00:25]} 28. Re1 {[%emt 0:00:16]} cxb3 {[%emt 0:00:44]} 29. cxb3 {[%emt 0:00:03]} Qc8 {[%emt 0:00:19]} 30. Qh7 {[%emt 0:00:34]} Ke7 {[%emt 0:00:24]} 31. Qxh6 {[%emt 0:00:03]} Qc5 {[%emt 0:00:27]} 32. Qh4 {[%emt 0:00:05]} Kd7 {[%emt 0:00:14]} 33. Rd3 {[%emt 0:00:33]} Qc2 {[%emt 0:00:42]} 34. Qg4+ {[%emt 0:00:46]} Ke7 {[%emt 0:00:19]} 35. Rdd1 {[%emt 0:00:02]} Qxb3 {[%emt 0:00:21]} 36. Rc1 {[%emt 0:00:03]} Kf8 {[%emt 0:00:24]} 37. Rc7 {[%emt 0:00:06]} Bg7 {[%emt 0:00:31]} 38. Qd7 {[%emt 0:00:04]} 1-0

[Event "EIRCC 2019"]
[Site "Tallinn"]
[Date "2019.12.05"]
[Round "1.35"]
[White "Sanz Losada, Victoriano"]
[Black "Loginov, Valery A"]
[Result "0-1"]
[ECO "E46"]
[WhiteElo "1932"]
[BlackElo "2461"]
[Annotator "ChessBase"]
[PlyCount "104"]
[EventDate "2019.12.05"]
[EventType "swiss"]
[EventCountry "EST"]
[SourceTitle "playchess.com"]
[Source "ChessBase"]
[SourceQuality "1"]
[TimeControl "900+10"]

1. d4 {[%emt 0:00:00]} Nf6 {[%emt 0:00:00]} 2. c4 {[%emt 0:00:00]} e6 {[%emt 0:00:00]} 3. Nc3 {[%emt 0:00:01]} Bb4 {[%emt 0:00:00]} 4. e3 {[%emt 0:00:04]} O-O {[%emt 0:00:04]} 5. Nge2 {[%emt 0:00:04]} d5 {[%emt 0:00:02]} 6. a3 {[%emt 0:00:04]} Bd6 {[%emt 0:00:04]} 7. Ng3 {[%emt 0:01:46]} c5 {[%emt 0:01:26]} 8. dxc5 {[%emt 0:01:17]} Bxc5 {[%emt 0:00:06]} 9. b4 {[%emt 0:02:24]} Bb6 {[%emt 0:00:12]} 10. c5 {[%emt 0:03:04]} Bc7 {[%emt 0:00:04]} 11. Bb2 {[%emt 0:00:03]} Nc6 {[%emt 0:00:17]} 12. Nb5 {[%emt 0:00:20]} Bb8 {[%emt 0:00:59]} 13. Bd3 {[%emt 0:01:29]} e5 {[%emt 0:02:33]} 14. O-O {[%emt 0:03:16]} a6 {[%emt 0:02:06]} 15. Nc3 {[%emt 0:00:03]} Bg4 {[%emt 0:01:16]} 16. f3 {[%emt 0:00:03]} Be6 {[%emt 0:00:07]} 17. e4 {[%emt 0:00:32]} d4 {[%emt 0:00:35]} 18. Nce2 {[%emt 0:00:30]} Ne7 {[%emt 0:03:51]} 19. Qd2 {[%emt 0:00:14]} Ng6 {[%emt 0:00:04]} 20. Nf5 {[%emt 0:00:35]} Qd7 {[%emt 0:00:28]} 21. Qg5 {[%emt 0:00:38]} Bxf5 {[%emt 0:00:12]} 22. exf5 {[%emt 0:00:08]} h6 {[%emt 0:00:12]} 23. Qd2 {[%emt 0:00:10]} Ne7 {[%emt 0:00:02]} 24. g4 {[%emt 0:00:09]} Nfd5 {[%emt 0:00:39]} 25. Ng3 {[%emt 0:00:09]} Ne3 {[%emt 0:00:10]} 26. Rf2 {[%emt 0:00:02]} N7d5 {[%emt 0:00:03]} 27. Be4 {[%emt 0:00:09]} Nf4 {[%emt 0:00:33]} 28. Kh1 {[%emt 0:00:01]} Nc4 {[%emt 0:00:02]} 29. Qc2 {[%emt 0:00:11]} Nxb2 {[%emt 0:00:21]} 30. Qxb2 {[%emt 0:00:01]} a5 {[%emt 0:00:04]} 31. b5 {[%emt 0:00:08]} Qe7 {[%emt 0:00:11]} 32. Rc1 {[%emt 0:00:24]} a4 {[%emt 0:00:09]} 33. Ne2 {[%emt 0:00:26]} Nh3 {[%emt 0:00:22]} 34. Rg2 {[%emt 0:00:15]} Rd8 {[%emt 0:00:06]} 35. c6 {[%emt 0:00:41]} bxc6 {[%emt 0:00:10]} 36. Rxc6 {[%emt 0:00:25]} Ra7 {[%emt 0:00:16]} 37. Nc1 {[%emt 0:00:01]} Nf4 {[%emt 0:00:28]} 38. Rd2 {[%emt 0:00:02]} Bd6 {[%emt 0:00:02]} 39. Nd3 {[%emt 0:01:00]} Bxa3 {[%emt 0:00:10]} 40. Qa2 {[%emt 0:00:01]} Bb4 {[%emt 0:00:40]} 41. b6 {[%emt 0:00:42]} Rad7 {[%emt 0:00:26]} 42. Rd1 {[%emt 0:00:15]} Nxd3 {[%emt 0:00:11]} 43. Rxd3 {[%emt 0:00:09]} a3 {[%emt 0:00:02]} 44. Rc4 {[%emt 0:00:10]} Rb8 {[%emt 0:00:12]} 45. b7 {[%emt 0:00:01]} Bd6 {[%emt 0:00:09]} 46. Rc8+ {[%emt 0:00:05]} Rd8 {[%emt 0:00:02]} 47. Rd1 {[%emt 0:00:12]} Rdxc8 {[%emt 0:00:06]} 48. bxc8=Q+ {[%emt 0:00:04]} Rxc8 {[%emt 0:00:01]} 49. Rb1 {[%emt 0:00:05]} h5 {[%emt 0:00:29]} 50. Kg2 {[%emt 0:00:05]} hxg4 {[%emt 0:00:03]} 51. fxg4 {[%emt 0:00:01]} Qg5 {[%emt 0:00:08]} 52. h3 {[%emt 0:00:01]} Qe3 {[%emt 0:00:12]} 0-1

[Event "EIRCC 2019"]
[Site "Tallinn"]
[Date "2019.12.05"]
[Round "1.36"]
[White "Thorfinnsson, Bragi"]
[Black "Jonsson, Gauti Pall"]
[Result "1-0"]
[ECO "A00"]
[WhiteElo "2457"]
[BlackElo "1929"]
[Annotator "ChessBase"]
[PlyCount "81"]
[EventDate "2019.12.05"]
[EventType "swiss"]
[EventCountry "EST"]
[SourceTitle "playchess.com"]
[Source "ChessBase"]
[SourceQuality "1"]
[TimeControl "900+10"]

1. Nc3 {[%emt 0:00:00]} d5 {[%emt 0:00:00]} 2. d4 {[%emt 0:00:06]} Nf6 {[%emt 0:00:16]} 3. Bf4 {[%emt 0:00:19]} g6 {[%emt 0:00:35]} 4. e3 {[%emt 0:00:33]} Bg7 {[%emt 0:00:08]} 5. h4 {[%emt 0:00:05]} h5 {[%emt 0:00:33]} 6. Nf3 {[%emt 0:00:46]} Bf5 {[%emt 0:00:32]} 7. Bd3 {[%emt 0:01:17]} c6 {[%emt 0:00:33]} 8. Qe2 {[%emt 0:00:52]} Nbd7 {[%emt 0:00:27]} 9. O-O-O {[%emt 0:00:36]} Qa5 {[%emt 0:01:22]} 10. Ne5 {[%emt 0:01:02]} Ne4 {[%emt 0:00:42]} 11. Bxe4 {[%emt 0:00:26]} dxe4 {[%emt 0:00:22]} 12. Nxd7 {[%emt 0:00:50]} Bxd7 {[%emt 0:00:06]} 13. Kb1 {[%emt 0:00:15]} Be6 {[%emt 0:00:30]} 14. a3 {[%emt 0:00:23]} b5 {[%emt 0:00:01]} 15. Nxe4 {[%emt 0:00:37]} O-O {[%emt 0:00:35]} 16. Nc5 {[%emt 0:00:32]} Bc4 {[%emt 0:01:02]} 17. Qd2 {[%emt 0:00:03]} Qd8 {[%emt 0:00:02]} 18. g4 {[%emt 0:01:00]} e5 {[%emt 0:00:54]} 19. Bxe5 {[%emt 0:00:37]} Bxe5 {[%emt 0:00:05]} 20. dxe5 {[%emt 0:00:02]} Qxd2 {[%emt 0:00:15]} 21. Rxd2 {[%emt 0:00:01]} hxg4 {[%emt 0:00:02]} 22. Rd4 {[%emt 0:00:55]} Rad8 {[%emt 0:00:28]} 23. Nd7 Rxd7 {[%emt 0:00:34]} 24. Rxd7 {[%emt 0:00:06]} Bd5 {[%emt 0:00:01]} 25. Rg1 {[%emt 0:00:07]} Kg7 {[%emt 0:00:03]} 26. Rxa7 {[%emt 0:00:12]} Rh8 {[%emt 0:00:01]} 27. Rxg4 {[%emt 0:00:09]} Be6 {[%emt 0:00:04]} 28. Rg1 {[%emt 0:00:29]} Rxh4 {[%emt 0:00:02]} 29. f4 {[%emt 0:00:27]} Rh3 {[%emt 0:00:15]} 30. Re1 {[%emt 0:00:01]} Rh2 {[%emt 0:00:01]} 31. Rc7 {[%emt 0:00:13]} Bd5 {[%emt 0:00:23]} 32. e4 {[%emt 0:00:02]} Be6 {[%emt 0:00:03]} 33. Rxc6 {[%emt 0:00:08]} Rf2 {[%emt 0:00:01]} 34. f5 {[%emt 0:00:22]} gxf5 {[%emt 0:00:01]} 35. exf5 {[%emt 0:00:01]} Bxf5 {[%emt 0:00:06]} 36. b4 {[%emt 0:00:17]} Rf3 {[%emt 0:00:04]} 37. Kb2 {[%emt 0:00:02]} Kf8 {[%emt 0:00:14]} 38. Rc5 {[%emt 0:00:29]} Rf2 {[%emt 0:00:01]} 39. Rd1 {[%emt 0:00:14]} Re2 {[%emt 0:00:13]} 40. Rd6 {[%emt 0:00:02]} Kg7 {[%emt 0:00:11]} 41. Rb6 {[%emt 0:00:24]} 1-0

[Event "EIRCC 2019"]
[Site "Tallinn"]
[Date "2019.12.05"]
[Round "2.9"]
[White "Murashova, Ekaterina"]
[Black "Postny, Evgeny"]
[Result "0-1"]
[ECO "B14"]
[WhiteElo "2196"]
[BlackElo "2598"]
[Annotator "ChessBase"]
[PlyCount "83"]
[EventDate "2019.12.05"]
[EventType "swiss"]
[EventCountry "EST"]
[SourceTitle "playchess.com"]
[Source "ChessBase"]
[SourceQuality "1"]
[TimeControl "900+10"]

1. e4 {[%emt 0:00:00]} c6 {[%emt 0:00:00]} 2. d4 {[%emt 0:00:00]} d5 {[%emt 0:00:00]} 3. exd5 {[%emt 0:00:00]} cxd5 {[%emt 0:00:00]} 4. c4 {[%emt 0:00:00]} Nf6 {[%emt 0:00:00]} 5. Nc3 {[%emt 0:00:01]} g6 {[%emt 0:00:00]} 6. Qb3 {[%emt 0:00:34]} Bg7 {[%emt 0:00:02]} 7. cxd5 {[%emt 0:00:01]} O-O {[%emt 0:00:04]} 8. Be2 {[%emt 0:00:11]} Nbd7 {[%emt 0:00:11]} 9. Bf3 {[%emt 0:00:04]} Nb6 {[%emt 0:00:02]} 10. Nge2 {[%emt 0:00:10]} Bf5 {[%emt 0:00:03]} 11. Bf4 {[%emt 0:03:06]} Bd3 {[%emt 0:00:23]} 12. d6 {[%emt 0:00:24]} exd6 {[%emt 0:00:19]} 13. O-O {[%emt 0:00:52]} Re8 {[%emt 0:01:10]} 14. Rfe1 {[%emt 0:00:17]} Bc4 {[%emt 0:00:22]} 15. Qb4 {[%emt 0:02:48]} d5 {[%emt 0:01:48]} 16. b3 {[%emt 0:02:17]} Bd3 {[%emt 0:00:42]} 17. Be5 {[%emt 0:01:12]} a5 {[%emt 0:02:35]} 18. Qa3 {[%emt 0:00:37]} Bf8 {[%emt 0:04:22]} 19. Qb2 {[%emt 0:00:10]} Be4 {[%emt 0:00:05]} 20. Bxf6 {[%emt 0:01:55]} Qxf6 {[%emt 0:00:02]} 21. Bxe4 {[%emt 0:00:04]} dxe4 {[%emt 0:00:01]} 22. Ng3 {[%emt 0:00:32]} Qxd4 {[%emt 0:00:35]} 23. Rad1 {[%emt 0:00:28]} Qg7 {[%emt 0:01:00]} 24. Rxe4 {[%emt 0:01:44]} Bb4 {[%emt 0:01:52]} 25. Na4 {[%emt 0:00:24]} Nxa4 {[%emt 0:00:31]} 26. Qxg7+ {[%emt 0:00:03]} Kxg7 {[%emt 0:00:01]} 27. bxa4 {[%emt 0:00:04]} Rad8 {[%emt 0:00:23]} 28. Rxd8 {[%emt 0:00:21]} Rxd8 {[%emt 0:00:02]} 29. Nf1 {[%emt 0:00:10]} Rd3 {[%emt 0:00:24]} 30. g3 {[%emt 0:00:44]} Ra3 {[%emt 0:00:05]} 31. Re2 {[%emt 0:00:05]} Rxa4 {[%emt 0:00:03]} 32. Ne3 {[%emt 0:00:02]} Bc5 {[%emt 0:00:14]} 33. Nd5 {[%emt 0:00:08]} b5 {[%emt 0:00:47]} 34. Rc2 {[%emt 0:00:08]} Bd4 {[%emt 0:00:28]} 35. Kg2 {[%emt 0:00:07]} Ra3 {[%emt 0:00:05]} 36. Nc7 {[%emt 0:00:09]} b4 {[%emt 0:00:08]} 37. Nb5 {[%emt 0:00:04]} Rd3 {[%emt 0:00:02]} 38. Rc6 {[%emt 0:00:23]} Rd2 {[%emt 0:01:19]} 39. Nxd4 {[%emt 0:00:01]} Rxd4 {[%emt 0:00:02]} 40. Ra6 {[%emt 0:00:01]} Rd5 {[%emt 0:00:01]} 41. Kf3 {[%emt 0:00:01]} Rd3+ {[%emt 0:00:17]} 42. Ke4 0-1

[Event "EIRCC 2019"]
[Site "Tallinn"]
[Date "2019.12.05"]
[Round "2.10"]
[White "Sanal, Vahap"]
[Black "Jazdanovs, Aleksandrs"]
[Result "1-0"]
[ECO "B23"]
[WhiteElo "2597"]
[BlackElo "2187"]
[Annotator "ChessBase"]
[PlyCount "65"]
[EventDate "2019.12.05"]
[EventType "swiss"]
[EventCountry "EST"]
[SourceTitle "playchess.com"]
[Source "ChessBase"]
[SourceQuality "1"]
[TimeControl "900+10"]

1. e4 {[%emt 0:00:06]} c5 {[%emt 0:00:04]} 2. Nc3 {[%emt 0:00:03]} d6 {[%emt 0:00:09]} 3. Bb5+ {[%emt 0:00:05]} Bd7 {[%emt 0:00:10]} 4. Bxd7+ {[%emt 0:00:03]} Qxd7 {[%emt 0:00:55]} 5. d4 {[%emt 0:00:03]} cxd4 {[%emt 0:00:16]} 6. Qxd4 {[%emt 0:00:16]} Nc6 {[%emt 0:00:14]} 7. Qd3 {[%emt 0:00:02]} g6 {[%emt 0:01:07]} 8. Nf3 {[%emt 0:00:05]} Bg7 {[%emt 0:00:05]} 9. Bg5 {[%emt 0:00:06]} Nf6 {[%emt 0:00:24]} 10. Rd1 {[%emt 0:00:02]} O-O {[%emt 0:00:19]} 11. O-O {[%emt 0:00:15]} Qe6 {[%emt 0:00:58]} 12. Nd5 {[%emt 0:00:21]} Rac8 {[%emt 0:00:55]} 13. Rfe1 {[%emt 0:00:08]} h6 {[%emt 0:02:02]} 14. Bc1 {[%emt 0:00:32]} Nd7 {[%emt 0:02:28]} 15. c4 {[%emt 0:00:12]} Nce5 {[%emt 0:00:21]} 16. Nxe5 {[%emt 0:00:02]} Nxe5 {[%emt 0:00:02]} 17. Qb3 {[%emt 0:00:02]} b6 {[%emt 0:02:49]} 18. Qa3 {[%emt 0:00:12]} Nxc4 {[%emt 0:00:10]} 19. Qxa7 {[%emt 0:00:03]} Ra8 {[%emt 0:00:52]} 20. Qc7 {[%emt 0:00:26]} Nxb2 {[%emt 0:00:34]} 21. Nxe7+ {[%emt 0:00:22]} Kh7 {[%emt 0:00:26]} 22. Rxd6 {[%emt 0:01:39]} Be5 {[%emt 0:01:10]} 23. Rxe6 {[%emt 0:00:16]} Bxc7 {[%emt 0:00:02]} 24. Rc6 {[%emt 0:00:02]} Nd3 {[%emt 0:00:02]} 25. Re2 {[%emt 0:00:13]} Nxc1 {[%emt 0:01:05]} 26. Rxc1 {[%emt 0:00:01]} Bd6 {[%emt 0:00:01]} 27. Nd5 {[%emt 0:00:06]} Ra6 {[%emt 0:01:16]} 28. g3 {[%emt 0:00:06]} Kg7 {[%emt 0:00:04]} 29. Rc6 {[%emt 0:00:06]} Bc5 {[%emt 0:00:02]} 30. e5 {[%emt 0:00:07]} Rd8 {[%emt 0:00:11]} 31. Nc7 {[%emt 0:00:14]} Ra7 {[%emt 0:00:42]} 32. e6 {[%emt 0:00:10]} Rd6 {[%emt 0:00:03]} 33. Ne8+ {[%emt 0:00:03]} 1-0

[Event "EIRCC 2019"]
[Site "Tallinn"]
[Date "2019.12.05"]
[Round "2.13"]
[White "Morgunov, Marc"]
[Black "Yuffa, Daniil"]
[Result "0-1"]
[ECO "B11"]
[WhiteElo "2182"]
[BlackElo "2587"]
[Annotator "ChessBase"]
[PlyCount "68"]
[EventDate "2019.12.05"]
[EventType "swiss"]
[EventCountry "EST"]
[SourceTitle "playchess.com"]
[Source "ChessBase"]
[SourceQuality "1"]
[TimeControl "900+10"]

1. e4 {[%emt 0:00:00]} c6 {[%emt 0:00:00]} 2. Nc3 {[%emt 0:00:00]} d5 {[%emt 0:00:00]} 3. Nf3 {[%emt 0:00:00]} Bg4 {[%emt 0:00:00]} 4. h3 {[%emt 0:00:00]} Bxf3 {[%emt 0:00:01]} 5. Qxf3 {[%emt 0:00:00]} e6 {[%emt 0:00:02]} 6. Be2 {[%emt 0:00:00]} Bc5 {[%emt 0:00:15]} 7. O-O {[%emt 0:00:31]} Ne7 {[%emt 0:00:06]} 8. d3 {[%emt 0:04:05]} O-O {[%emt 0:00:09]} 9. Qg3 {[%emt 0:00:41]} Nd7 {[%emt 0:00:13]} 10. Bd2 {[%emt 0:00:18]} f5 {[%emt 0:01:30]} 11. exd5 {[%emt 0:02:28]} exd5 {[%emt 0:02:17]} 12. Rae1 {[%emt 0:02:11]} Nf6 {[%emt 0:00:24]} 13. Na4 {[%emt 0:00:52]} Bd6 {[%emt 0:00:10]} 14. Bf4 {[%emt 0:00:02]} Bxf4 {[%emt 0:00:31]} 15. Qxf4 {[%emt 0:00:01]} Qa5 {[%emt 0:01:26]} 16. Nc3 {[%emt 0:00:20]} Rae8 {[%emt 0:01:19]} 17. Bd1 {[%emt 0:01:15]} Ng6 {[%emt 0:02:36]} 18. Qxf5 {[%emt 0:02:00]} Ne4 {[%emt 0:00:02]} 19. Qg4 {[%emt 0:00:21]} Nd2 {[%emt 0:00:57]} 20. Qd7 {[%emt 0:01:07]} Ne5 {[%emt 0:00:55]} 21. Qxb7 {[%emt 0:00:33]} Nxf1 {[%emt 0:00:43]} 22. Rxf1 {[%emt 0:00:21]} Rf7 {[%emt 0:00:35]} 23. Qb3 {[%emt 0:00:06]} Ref8 {[%emt 0:00:03]} 24. Qa4 {[%emt 0:00:37]} Qb6 {[%emt 0:00:09]} 25. d4 {[%emt 0:00:18]} Nc4 {[%emt 0:00:13]} 26. Bg4 {[%emt 0:00:23]} Kh8 {[%emt 0:00:49]} 27. Be6 {[%emt 0:00:34]} Rf6 {[%emt 0:00:09]} 28. Bxd5 {[%emt 0:00:01]} Ne3 {[%emt 0:00:51]} 29. Ne4 {[%emt 0:00:21]} Nxf1 {[%emt 0:01:01]} 30. Nxf6 {[%emt 0:00:02]} gxf6 {[%emt 0:00:59]} 31. Bxc6 {[%emt 0:00:23]} Nd2 {[%emt 0:00:11]} 32. b3 {[%emt 0:00:14]} a5 {[%emt 0:00:28]} 33. Qb5 {[%emt 0:00:13]} Qxb5 {[%emt 0:00:11]} 34. Bxb5 {[%emt 0:00:00]} Rd8 {[%emt 0:00:02]} 0-1

[Event "EIRCC 2019"]
[Site "Tallinn"]
[Date "2019.12.05"]
[Round "2.15"]
[White "Babula, Vlastimil"]
[Black "Poznyak, Nazar"]
[Result "1-0"]
[ECO "E53"]
[WhiteElo "2559"]
[BlackElo "2176"]
[Annotator "ChessBase"]
[PlyCount "89"]
[EventDate "2019.12.05"]
[EventType "swiss"]
[EventCountry "EST"]
[SourceTitle "playchess.com"]
[Source "ChessBase"]
[SourceQuality "1"]
[TimeControl "900+10"]

1. d4 {[%emt 0:00:00]} Nf6 {[%emt 0:00:00]} 2. c4 {[%emt 0:00:00]} e6 {[%emt 0:00:00]} 3. Nc3 {[%emt 0:00:15]} Bb4 {[%emt 0:00:00]} 4. e3 {[%emt 0:00:07]} O-O {[%emt 0:00:00]} 5. Bd3 {[%emt 0:00:07]} d5 {[%emt 0:00:10]} 6. Nf3 {[%emt 0:00:18]} c5 {[%emt 0:00:07]} 7. cxd5 {[%emt 0:00:10]} exd5 {[%emt 0:00:03]} 8. dxc5 {[%emt 0:00:04]} Nc6 {[%emt 0:00:11]} 9. O-O {[%emt 0:00:26]} Bxc5 {[%emt 0:00:03]} 10. h3 {[%emt 0:00:08]} Qe7 {[%emt 0:00:48]} 11. b3 {[%emt 0:00:05]} Rd8 {[%emt 0:00:02]} 12. Bb2 {[%emt 0:00:11]} Ne4 {[%emt 0:00:19]} 13. Rc1 {[%emt 0:00:38]} Bf5 {[%emt 0:00:37]} 14. Ne2 {[%emt 0:00:26]} Rac8 {[%emt 0:01:07]} 15. Nf4 {[%emt 0:01:50]} h6 {[%emt 0:00:46]} 16. Qe2 {[%emt 0:00:36]} g5 {[%emt 0:02:42]} 17. Nh5 {[%emt 0:00:29]} Bg6 {[%emt 0:00:01]} 18. Bxe4 {[%emt 0:01:25]} dxe4 {[%emt 0:00:02]} 19. Nf6+ {[%emt 0:00:20]} Kf8 {[%emt 0:00:02]} 20. Nd2 {[%emt 0:00:29]} Bb4 {[%emt 0:00:03]} 21. Rfd1 {[%emt 0:00:40]} Rd6 {[%emt 0:00:39]} 22. Nc4 {[%emt 0:02:42]} Rxf6 {[%emt 0:00:33]} 23. a3 {[%emt 0:00:01]} b5 {[%emt 0:01:36]} 24. Ne5 {[%emt 0:01:36]} Bf5 {[%emt 0:00:21]} 25. axb4 {[%emt 0:00:15]} Nxe5 {[%emt 0:00:12]} 26. Rxc8+ {[%emt 0:00:21]} Bxc8 {[%emt 0:00:01]} 27. Bxe5 {[%emt 0:00:52]} Qxe5 {[%emt 0:00:01]} 28. Rd8+ {[%emt 0:00:02]} Kg7 {[%emt 0:00:02]} 29. Rxc8 {[%emt 0:00:01]} Ra6 {[%emt 0:01:19]} 30. g3 {[%emt 0:00:23]} Qa1+ {[%emt 0:00:27]} 31. Kg2 {[%emt 0:00:23]} Ra2 {[%emt 0:00:50]} 32. Rc2 {[%emt 0:01:07]} Rxc2 {[%emt 0:00:14]} 33. Qxc2 {[%emt 0:00:01]} Qe5 {[%emt 0:00:05]} 34. g4 {[%emt 0:00:08]} a6 {[%emt 0:01:56]} 35. Qc6 {[%emt 0:00:05]} f5 {[%emt 0:01:54]} 36. Qb7+ {[%emt 0:00:06]} Kf8 {[%emt 0:00:21]} 37. Qxa6 {[%emt 0:00:04]} f4 {[%emt 0:00:26]} 38. Qxh6+ {[%emt 0:00:04]} Ke7 {[%emt 0:00:56]} 39. h4 {[%emt 0:00:21]} fxe3 {[%emt 0:01:04]} 40. fxe3 {[%emt 0:00:05]} gxh4 {[%emt 0:00:10]} 41. Qxh4+ {[%emt 0:00:12]} Kd7 {[%emt 0:00:02]} 42. Qh7+ {[%emt 0:00:10]} Ke6 {[%emt 0:00:25]} 43. Qf5+ {[%emt 0:00:57]} Qxf5 {[%emt 0:00:06]} 44. gxf5+ {[%emt 0:00:01]} Kxf5 {[%emt 0:00:28]} 45. Kh3 {[%emt 0:00:04]} 1-0

[Event "EIRCC 2019"]
[Site "Tallinn"]
[Date "2019.12.05"]
[Round "2.16"]
[White "Stupak, Kirill"]
[Black "Loy, Konstantin"]
[Result "1-0"]
[ECO "A56"]
[WhiteElo "2552"]
[BlackElo "2154"]
[Annotator "ChessBase"]
[PlyCount "61"]
[EventDate "2019.12.05"]
[EventType "swiss"]
[EventCountry "EST"]
[SourceTitle "playchess.com"]
[Source "ChessBase"]
[SourceQuality "1"]
[TimeControl "900+10"]

1. d4 {[%emt 0:00:00]} Nf6 {[%emt 0:00:00]} 2. c4 {[%emt 0:00:00]} c5 {[%emt 0:00:00]} 3. Nf3 {[%emt 0:00:00]} cxd4 {[%emt 0:00:00]} 4. Nxd4 {[%emt 0:00:00]} e5 {[%emt 0:00:21]} 5. Nb5 {[%emt 0:00:00]} d5 {[%emt 0:00:07]} 6. cxd5 {[%emt 0:00:01]} Bc5 {[%emt 0:00:05]} 7. N5c3 {[%emt 0:00:02]} O-O {[%emt 0:00:13]} 8. e3 {[%emt 0:00:01]} Qe7 {[%emt 0:00:14]} 9. a3 {[%emt 0:00:25]} a5 {[%emt 0:00:10]} 10. Be2 {[%emt 0:02:10]} e4 {[%emt 0:00:10]} 11. Nd2 {[%emt 0:00:32]} Na6 {[%emt 0:02:55]} 12. Qc2 {[%emt 0:04:38]} Re8 {[%emt 0:01:34]} 13. O-O {[%emt 0:02:20]} Bf5 {[%emt 0:02:25]} 14. Rd1 {[%emt 0:00:02]} Nc7 {[%emt 0:03:19]} 15. Nc4 {[%emt 0:01:16]} Rad8 {[%emt 0:01:08]} 16. d6 {[%emt 0:01:59]} Bxd6 {[%emt 0:00:13]} 17. Nxd6 {[%emt 0:00:21]} Rxd6 {[%emt 0:00:02]} 18. Rxd6 {[%emt 0:00:43]} Qxd6 {[%emt 0:00:01]} 19. h3 {[%emt 0:00:14]} Na6 {[%emt 0:03:42]} 20. Bd2 {[%emt 0:00:29]} Nc5 {[%emt 0:00:17]} 21. Nb5 {[%emt 0:00:01]} Qb6 {[%emt 0:00:12]} 22. Bxa5 {[%emt 0:00:37]} Qxa5 {[%emt 0:00:25]} 23. Qxc5 {[%emt 0:00:01]} Qd2 {[%emt 0:00:40]} 24. Nd4 {[%emt 0:01:29]} Qxb2 {[%emt 0:00:27]} 25. Qc1 {[%emt 0:00:01]} Qxc1+ {[%emt 0:00:13]} 26. Rxc1 {[%emt 0:00:00]} Be6 {[%emt 0:00:12]} 27. Nxe6 {[%emt 0:00:23]} Rxe6 {[%emt 0:00:13]} 28. Rc7 {[%emt 0:00:01]} b6 {[%emt 0:00:03]} 29. Bc4 {[%emt 0:00:06]} Re8 {[%emt 0:00:16]} 30. Bxf7+ {[%emt 0:00:02]} Kf8 {[%emt 0:00:04]} 31. Bxe8 {[%emt 0:00:02]} 1-0

[Event "EIRCC 2019"]
[Site "Tallinn"]
[Date "2019.12.05"]
[Round "2.17"]
[White "Lehiste, Margus"]
[Black "Ruck, Robert"]
[Result "0-1"]
[ECO "E10"]
[WhiteElo "2177"]
[BlackElo "2551"]
[Annotator "ChessBase"]
[PlyCount "60"]
[EventDate "2019.12.05"]
[EventType "swiss"]
[EventCountry "EST"]
[SourceTitle "playchess.com"]
[Source "ChessBase"]
[SourceQuality "1"]
[TimeControl "900+10"]

1. d4 {[%emt 0:00:00]} Nf6 {[%emt 0:02:19]} 2. c4 {[%emt 0:00:00]} e6 {[%emt 0:00:02]} 3. Nf3 {[%emt 0:00:00]} d5 {[%emt 0:00:03]} 4. g3 {[%emt 0:00:00]} dxc4 {[%emt 0:00:01]} 5. Qa4+ {[%emt 0:00:00]} Nbd7 {[%emt 0:00:06]} 6. Qxc4 {[%emt 0:00:00]} a6 {[%emt 0:00:01]} 7. Bg2 {[%emt 0:00:00]} b5 {[%emt 0:00:02]} 8. Qc2 {[%emt 0:00:00]} Bb7 {[%emt 0:00:03]} 9. Bf4 {[%emt 0:00:01]} c5 {[%emt 0:00:07]} 10. dxc5 {[%emt 0:00:21]} Bxc5 {[%emt 0:00:02]} 11. O-O {[%emt 0:00:13]} Rc8 {[%emt 0:00:02]} 12. Qb3 {[%emt 0:00:27]} O-O {[%emt 0:00:26]} 13. Nc3 {[%emt 0:00:57]} Qb6 {[%emt 0:00:47]} 14. Ne5 {[%emt 0:00:25]} Nxe5 {[%emt 0:01:23]} 15. Bxb7 {[%emt 0:01:16]} Qxb7 {[%emt 0:00:15]} 16. Bxe5 {[%emt 0:00:02]} Ng4 {[%emt 0:00:09]} 17. Bf4 {[%emt 0:00:11]} Bd4 {[%emt 0:01:42]} 18. h3 {[%emt 0:00:34]} Nf6 {[%emt 0:00:01]} 19. Rac1 {[%emt 0:00:47]} h6 {[%emt 0:02:13]} 20. e3 {[%emt 0:03:31]} Bxc3 {[%emt 0:01:30]} 21. Rxc3 {[%emt 0:00:11]} Rxc3 {[%emt 0:01:42]} 22. Qxc3 {[%emt 0:00:06]} Rc8 {[%emt 0:00:05]} 23. Qd3 {[%emt 0:01:58]} Qf3 {[%emt 0:00:18]} 24. Qd1 {[%emt 0:01:54]} Qe4 {[%emt 0:00:02]} 25. Qb1 {[%emt 0:00:03]} Rc2 {[%emt 0:01:15]} 26. g4 {[%emt 0:01:39]} Qc6 {[%emt 0:00:15]} 27. Rd1 {[%emt 0:00:12]} Ne4 {[%emt 0:00:07]} 28. Bg3 {[%emt 0:02:54]} Nxg3 {[%emt 0:00:26]} 29. Rd8+ {[%emt 0:00:02]} Kh7 {[%emt 0:00:02]} 30. Rd2 {[%emt 0:00:01]} Qh1# {[%emt 0:00:01]} 0-1